[Event "December 5 Late 2023"]
[Site "https://www.chess.com"]
[Date "2023.12.05"]
[Round "3"]
[White "YurasovMat-2012"]
[Black "Duncan, Chris R"]
[Result "1-0"]
[Board "169"]
[TimeControl "180+1"]
[BlackFideId "403091"]
[WhiteElo "2371"]
[BlackElo "2165"]
[BlackTeam "ENG"]
[WhiteClock "0:00:18"]
[BlackClock "0:00:08"]

1. e4 {[%clk 0:03:00]}  e6 {[%clk 0:02:55]} 2. d3 {[%clk 0:02:58]}  d5 {[%clk 0:02:55]} 3. Nd2 {[%clk 0:02:59]}  c5 {[%clk 0:02:54]} 4. g3 {[%clk 0:02:58]}  Nc6 {[%clk 0:02:54]} 5. Bg2 {[%clk 0:02:58]}  Nf6 {[%clk 0:02:54]} 6. Ne2 {[%clk 0:02:58]}  Be7 {[%clk 0:02:55]} 7. O-O {[%clk 0:02:57]}  b5 {[%clk 0:02:54]} 8. exd5 {[%clk 0:02:54]}  exd5 {[%clk 0:02:54]} 9. c4 {[%clk 0:02:54]}  b4 {[%clk 0:02:45]} 10. Nf4 {[%clk 0:02:48]}  Bg4 {[%clk 0:02:19]} 11. Qa4 {[%clk 0:02:39]}  Bd7 {[%clk 0:02:19]} 12. Qd1 {[%clk 0:02:30]}  dxc4 {[%clk 0:02:13]} 13. Nxc4 {[%clk 0:02:29]}  O-O {[%clk 0:02:12]} 14. Re1 {[%clk 0:02:27]}  Rc8 {[%clk 0:02:07]} 15. b3 {[%clk 0:02:26]}  Re8 {[%clk 0:02:06]} 16. Bb2 {[%clk 0:02:24]}  Bg4 {[%clk 0:02:06]} 17. Bf3 {[%clk 0:02:20]}  Bxf3 {[%clk 0:02:04]} 18. Qxf3 {[%clk 0:02:21]}  Nd4 {[%clk 0:02:04]} 19. Bxd4 {[%clk 0:02:20]}  Qxd4 {[%clk 0:02:04]} 20. Rad1 {[%clk 0:02:16]}  Bf8 {[%clk 0:02:02]} 21. h3 {[%clk 0:01:52]}  Rcd8 {[%clk 0:01:59]} 22. Qb7 {[%clk 0:01:50]}  Rd7 {[%clk 0:01:55]} 23. Qc6 {[%clk 0:01:49]}  Rde7 {[%clk 0:01:29]} 24. Rxe7 {[%clk 0:01:42]}  Rxe7 {[%clk 0:01:30]} 25. Nd6 {[%clk 0:01:40]}  g6 {[%clk 0:01:10]} 26. Nc4 {[%clk 0:01:21]}  Bg7 {[%clk 0:01:05]} 27. Qa8+ {[%clk 0:01:20]}  Re8 {[%clk 0:01:05]} 28. Qc6 {[%clk 0:01:11]}  g5 {[%clk 0:00:55]} 29. Ng2 {[%clk 0:01:06]}  h6 {[%clk 0:00:43]} 30. Nge3 {[%clk 0:01:05]}  Re6 {[%clk 0:00:30]} 31. Qa8+ {[%clk 0:01:00]}  Kh7 {[%clk 0:00:30]} 32. Qxa7 {[%clk 0:01:01]}  g4 {[%clk 0:00:29]} 33. Qxf7 {[%clk 0:00:58]}  Ra6 {[%clk 0:00:24]} 34. Nf5 {[%clk 0:00:55]}  Qd7 {[%clk 0:00:24]} 35. Qxg7+ {[%clk 0:00:50]}  Qxg7 {[%clk 0:00:23]} 36. Nxg7 {[%clk 0:00:51]}  Kxg7 {[%clk 0:00:24]} 37. Rd2 {[%clk 0:00:51]}  Nd5 {[%clk 0:00:24]} 38. hxg4 {[%clk 0:00:49]}  Nc3 {[%clk 0:00:23]} 39. Kg2 {[%clk 0:00:43]}  Nxa2 {[%clk 0:00:23]} 40. d4 {[%clk 0:00:39]}  cxd4 {[%clk 0:00:23]} 41. Rxd4 {[%clk 0:00:40]}  Nc3 {[%clk 0:00:23]} 42. Ne3 {[%clk 0:00:37]}  Rb6 {[%clk 0:00:20]} 43. Rd7+ {[%clk 0:00:36]}  Kg6 {[%clk 0:00:20]} 44. f4 {[%clk 0:00:35]}  Ne4 {[%clk 0:00:19]} 45. Kf3 {[%clk 0:00:34]}  Nc3 {[%clk 0:00:16]} 46. Rc7 {[%clk 0:00:32]}  Rd6 {[%clk 0:00:14]} 47. Nc4 {[%clk 0:00:25]}  Rd3+ {[%clk 0:00:14]} 48. Kg2 {[%clk 0:00:25]}  Kf6 {[%clk 0:00:11]} 49. Ne5 {[%clk 0:00:24]}  Rd2+ {[%clk 0:00:11]} 50. Kf3 {[%clk 0:00:21]}  Rb2 {[%clk 0:00:08]} 51. Rc6+ {[%clk 0:00:20]}  Ke7 {[%clk 0:00:08]} 52. f5 {[%clk 0:00:19]}  Rxb3 {[%clk 0:00:08]} 53. f6+ {[%clk 0:00:19]}  Kf8 {[%clk 0:00:08]} 54. Rc8# {[%clk 0:00:18]} 1-0

[Event "December 5 Late 2023"]
[Site "https://www.chess.com"]
[Date "2023.12.05"]
[Round "3"]
[White "Azali, Tannaz"]
[Black "th3d4rkness"]
[Result "1-0"]
[Board "171"]
[TimeControl "180+1"]
[WhiteFideId "12537721"]
[WhiteElo "2369"]
[BlackElo "2149"]
[WhiteTeam "IRI"]
[WhiteClock "0:00:41"]
[BlackClock "0:00:00"]

1. Nf3 {[%clk 0:02:59]}  Nf6 {[%clk 0:02:59]} 2. g3 {[%clk 0:03:00]}  g6 {[%clk 0:02:59]} 3. Bg2 {[%clk 0:03:00]}  Bg7 {[%clk 0:03:00]} 4. O-O {[%clk 0:03:01]}  O-O {[%clk 0:03:00]} 5. c4 {[%clk 0:03:01]}  d6 {[%clk 0:03:00]} 6. Nc3 {[%clk 0:03:00]}  c5 {[%clk 0:03:00]} 7. Rb1 {[%clk 0:02:57]}  Nc6 {[%clk 0:03:00]} 8. a3 {[%clk 0:02:57]}  a5 {[%clk 0:03:00]} 9. d3 {[%clk 0:02:56]}  e5 {[%clk 0:03:00]} 10. Bg5 {[%clk 0:02:56]}  h6 {[%clk 0:02:59]} 11. Bxf6 {[%clk 0:02:56]}  Bxf6 {[%clk 0:03:00]} 12. Nd5 {[%clk 0:02:57]}  Bg7 {[%clk 0:03:00]} 13. b4 {[%clk 0:02:57]}  axb4 {[%clk 0:02:56]} 14. axb4 {[%clk 0:02:58]}  b6 {[%clk 0:02:56]} 15. Nd2 {[%clk 0:02:51]}  Ra7 {[%clk 0:02:28]} 16. bxc5 {[%clk 0:02:43]}  bxc5 {[%clk 0:02:26]} 17. e3 {[%clk 0:02:09]}  Be6 {[%clk 0:02:19]} 18. Qb3 {[%clk 0:02:01]}  Bxd5 {[%clk 0:02:11]} 19. cxd5 {[%clk 0:01:54]}  Nb4 {[%clk 0:02:09]} 20. d4 {[%clk 0:01:53]}  exd4 {[%clk 0:02:06]} 21. exd4 {[%clk 0:01:54]}  Bxd4 {[%clk 0:02:05]} 22. h4 {[%clk 0:01:45]}  h5 {[%clk 0:02:03]} 23. Ne4 {[%clk 0:01:43]}  Qc7 {[%clk 0:01:33]} 24. Rfc1 {[%clk 0:01:40]}  Rfa8 {[%clk 0:01:17]} 25. Qf3 {[%clk 0:01:37]}  Qe7 {[%clk 0:01:12]} 26. Re1 {[%clk 0:01:30]}  Ra1 {[%clk 0:00:57]} 27. Kh2 {[%clk 0:01:06]}  Rxb1 {[%clk 0:00:57]} 28. Rxb1 {[%clk 0:01:07]}  Ra1 {[%clk 0:00:57]} 29. Rb3 {[%clk 0:00:58]}  Be5 {[%clk 0:00:47]} 30. Ng5 {[%clk 0:00:55]}  Nc2 {[%clk 0:00:44]} 31. Rb8+ {[%clk 0:00:52]}  Kg7 {[%clk 0:00:43]} 32. Qb3 {[%clk 0:00:44]}  Nd4 {[%clk 0:00:41]} 33. Qb7 {[%clk 0:00:43]}  Ra7 {[%clk 0:00:38]} 34. Qc8 {[%clk 0:00:42]}  Bxg3+ {[%clk 0:00:00]} 35. fxg3 {[%clk 0:00:41]} 1-0

[Event "December 5 Late 2023"]
[Site "https://www.chess.com"]
[Date "2023.12.05"]
[Round "3"]
[White "Nita, Lucian"]
[Black "Clarke, Adani"]
[Result "1-0"]
[Board "172"]
[TimeControl "180+1"]
[WhiteFideId "1206923"]
[BlackFideId "7402082"]
[WhiteElo "2364"]
[BlackElo "2146"]
[WhiteTeam "ROU"]
[BlackTeam "JAM"]
[WhiteClock "0:01:09"]
[BlackClock "0:01:18"]

1. e4 {[%clk 0:03:00]}  e6 {[%clk 0:02:57]} 2. d3 {[%clk 0:03:00]}  d5 {[%clk 0:02:57]} 3. Nd2 {[%clk 0:03:01]}  Nf6 {[%clk 0:02:57]} 4. Ngf3 {[%clk 0:03:00]}  dxe4 {[%clk 0:02:56]} 5. dxe4 {[%clk 0:03:00]}  Bc5 {[%clk 0:02:57]} 6. Bb5+ {[%clk 0:02:59]}  c6 {[%clk 0:02:57]} 7. Be2 {[%clk 0:02:58]}  O-O {[%clk 0:02:57]} 8. c3 {[%clk 0:02:58]}  Nbd7 {[%clk 0:02:56]} 9. Qc2 {[%clk 0:02:57]}  b5 {[%clk 0:02:48]} 10. a4 {[%clk 0:02:56]}  bxa4 {[%clk 0:02:46]} 11. Rxa4 {[%clk 0:02:55]}  Nb6 {[%clk 0:02:46]} 12. Ra1 {[%clk 0:02:55]}  Bb7 {[%clk 0:02:47]} 13. b4 {[%clk 0:02:54]}  Be7 {[%clk 0:02:47]} 14. O-O {[%clk 0:02:52]}  c5 {[%clk 0:02:47]} 15. b5 {[%clk 0:02:50]}  Qc7 {[%clk 0:02:45]} 16. Re1 {[%clk 0:02:47]}  Rfd8 {[%clk 0:02:44]} 17. Bf1 {[%clk 0:02:46]}  h6 {[%clk 0:02:43]} 18. Nc4 {[%clk 0:02:46]}  Nxc4 {[%clk 0:02:40]} 19. Bxc4 {[%clk 0:02:45]}  Rd7 {[%clk 0:02:32]} 20. g3 {[%clk 0:02:40]}  e5 {[%clk 0:02:28]} 21. Nd2 {[%clk 0:02:23]}  Rad8 {[%clk 0:02:26]} 22. f3 {[%clk 0:02:22]}  Ba8 {[%clk 0:02:25]} 23. Nf1 {[%clk 0:02:21]}  Ne8 {[%clk 0:02:19]} 24. Ne3 {[%clk 0:02:21]}  Nd6 {[%clk 0:02:17]} 25. Nd5 {[%clk 0:02:17]}  Bxd5 {[%clk 0:02:17]} 26. Bxd5 {[%clk 0:02:14]}  Nxb5 {[%clk 0:02:17]} 27. Bxf7+ {[%clk 0:02:05]}  Kxf7 {[%clk 0:02:13]} 28. Qb3+ {[%clk 0:02:05]}  Kf8 {[%clk 0:02:14]} 29. Qxb5 {[%clk 0:02:05]}  Rd1 {[%clk 0:02:14]} 30. Be3 {[%clk 0:01:57]}  Rxa1 {[%clk 0:02:11]} 31. Rxa1 {[%clk 0:01:55]}  Rb8 {[%clk 0:02:08]} 32. Qa6 {[%clk 0:01:49]}  Rb7 {[%clk 0:01:57]} 33. Qe6 {[%clk 0:01:39]}  Rb6 {[%clk 0:01:46]} 34. Qd5 {[%clk 0:01:36]}  Rf6 {[%clk 0:01:43]} 35. Qa8+ {[%clk 0:01:27]}  Kf7 {[%clk 0:01:37]} 36. Rxa7 {[%clk 0:01:23]}  Qd6 {[%clk 0:01:33]} 37. Qd5+ {[%clk 0:01:18]}  Qxd5 {[%clk 0:01:32]} 38. exd5 {[%clk 0:01:18]}  Ke8 {[%clk 0:01:26]} 39. Kg2 {[%clk 0:01:14]}  Rb6 {[%clk 0:01:18]} 40. Rxe7+ {[%clk 0:01:09]} 1-0

[Event "December 5 Late 2023"]
[Site "https://www.chess.com"]
[Date "2023.12.05"]
[Round "3"]
[White "Yushko, Olga"]
[Black "Micic, Aleksa"]
[Result "0-1"]
[Board "176"]
[TimeControl "180+1"]
[WhiteFideId "14114500"]
[BlackFideId "989940"]
[WhiteElo "2122"]
[BlackElo "2351"]
[WhiteTeam "UKR"]
[BlackTeam "SRB"]
[WhiteClock "0:00:29"]
[BlackClock "0:00:11"]

1. d4 {[%clk 0:03:00]}  Nf6 {[%clk 0:03:00]} 2. c4 {[%clk 0:03:00]}  g6 {[%clk 0:02:59]} 3. Nc3 {[%clk 0:03:01]}  d5 {[%clk 0:03:00]} 4. Nf3 {[%clk 0:03:01]}  Bg7 {[%clk 0:03:00]} 5. e3 {[%clk 0:03:02]}  O-O {[%clk 0:02:59]} 6. Be2 {[%clk 0:03:02]}  dxc4 {[%clk 0:02:57]} 7. Bxc4 {[%clk 0:03:02]}  c5 {[%clk 0:02:57]} 8. O-O {[%clk 0:03:03]}  Nc6 {[%clk 0:02:57]} 9. Re1 {[%clk 0:02:58]}  cxd4 {[%clk 0:02:57]} 10. exd4 {[%clk 0:02:57]}  Bg4 {[%clk 0:02:53]} 11. Be3 {[%clk 0:02:56]}  e6 {[%clk 0:02:47]} 12. Be2 {[%clk 0:02:55]}  Nd5 {[%clk 0:02:45]} 13. Bg5 {[%clk 0:02:53]}  Qd7 {[%clk 0:02:36]} 14. Ne5 {[%clk 0:02:46]}  Nxe5 {[%clk 0:02:30]} 15. Bxg4 {[%clk 0:02:43]}  Nxg4 {[%clk 0:02:14]} 16. Qxg4 {[%clk 0:02:43]}  Nb4 {[%clk 0:02:14]} 17. Rad1 {[%clk 0:02:39]}  Nc2 {[%clk 0:02:06]} 18. Re2 {[%clk 0:02:29]}  Nxd4 {[%clk 0:02:05]} 19. Red2 {[%clk 0:02:30]}  h6 {[%clk 0:01:36]} 20. Be3 {[%clk 0:02:23]}  f5 {[%clk 0:01:15]} 21. Rxd4 {[%clk 0:02:14]}  Qxd4 {[%clk 0:01:00]} 22. Qxd4 {[%clk 0:02:06]}  Bxd4 {[%clk 0:00:59]} 23. Rxd4 {[%clk 0:02:06]}  Rfd8 {[%clk 0:00:52]} 24. Rxd8+ {[%clk 0:02:02]}  Rxd8 {[%clk 0:00:51]} 25. Bxh6 {[%clk 0:02:02]}  b5 {[%clk 0:00:45]} 26. a3 {[%clk 0:01:55]}  a5 {[%clk 0:00:43]} 27. Kf1 {[%clk 0:01:55]}  b4 {[%clk 0:00:42]} 28. axb4 {[%clk 0:01:54]}  axb4 {[%clk 0:00:43]} 29. Nb5 {[%clk 0:01:52]}  Rd1+ {[%clk 0:00:40]} 30. Ke2 {[%clk 0:01:51]}  Rb1 {[%clk 0:00:41]} 31. Nd4 {[%clk 0:01:36]}  Rxb2+ {[%clk 0:00:36]} 32. Kf3 {[%clk 0:01:34]}  e5 {[%clk 0:00:32]} 33. Nc6 {[%clk 0:01:32]}  e4+ {[%clk 0:00:31]} 34. Kg3 {[%clk 0:01:30]}  b3 {[%clk 0:00:30]} 35. Nd4 {[%clk 0:01:20]}  Ra2 {[%clk 0:00:20]} 36. Nxb3 {[%clk 0:01:11]}  Ra3 {[%clk 0:00:19]} 37. Kh4 {[%clk 0:01:11]}  Rxb3 {[%clk 0:00:19]} 38. Be3 {[%clk 0:01:10]}  Kf7 {[%clk 0:00:18]} 39. Kg5 {[%clk 0:01:10]}  Rb8 {[%clk 0:00:16]} 40. Bf4 {[%clk 0:01:06]}  Rh8 {[%clk 0:00:16]} 41. Bg3 {[%clk 0:01:05]}  Rh5+ {[%clk 0:00:16]} 42. Kf4 {[%clk 0:01:05]}  Kf6 {[%clk 0:00:17]} 43. h4 {[%clk 0:01:04]}  Rh8 {[%clk 0:00:15]} 44. Ke3 {[%clk 0:00:59]}  g5 {[%clk 0:00:14]} 45. hxg5+ {[%clk 0:00:59]}  Kxg5 {[%clk 0:00:15]} 46. Be5 {[%clk 0:00:58]}  Re8 {[%clk 0:00:14]} 47. Bf4+ {[%clk 0:00:57]}  Kg4 {[%clk 0:00:14]} 48. Bd6 {[%clk 0:00:53]}  Rd8 {[%clk 0:00:13]} 49. Be5 {[%clk 0:00:52]}  Rd3+ {[%clk 0:00:12]} 50. Ke2 {[%clk 0:00:52]}  Ra3 {[%clk 0:00:13]} 51. Bd6 {[%clk 0:00:52]}  f4 {[%clk 0:00:13]} 52. f3+ {[%clk 0:00:49]}  exf3+ {[%clk 0:00:12]} 53. gxf3+ {[%clk 0:00:50]}  Rxf3 {[%clk 0:00:12]} 54. Ke1 {[%clk 0:00:47]}  Rb3 {[%clk 0:00:13]} 55. Kf2 {[%clk 0:00:46]}  f3 {[%clk 0:00:13]} 56. Be5 {[%clk 0:00:45]}  Ra3 {[%clk 0:00:12]} 57. Bd4 {[%clk 0:00:45]}  Ra2+ {[%clk 0:00:13]} 58. Kf1 {[%clk 0:00:45]}  Kh3 {[%clk 0:00:09]} 59. Bc5 {[%clk 0:00:43]}  Ra4 {[%clk 0:00:10]} 60. Bb6 {[%clk 0:00:43]}  Kg4 {[%clk 0:00:11]} 61. Bc5 {[%clk 0:00:42]}  Rc4 {[%clk 0:00:11]} 62. Bb6 {[%clk 0:00:42]}  Kg3 {[%clk 0:00:11]} 63. Bf2+ {[%clk 0:00:41]}  Kg4 {[%clk 0:00:12]} 64. Be3 {[%clk 0:00:41]}  Rc2 {[%clk 0:00:10]} 65. Bb6 {[%clk 0:00:39]}  Kg3 {[%clk 0:00:10]} 66. Ba5 {[%clk 0:00:36]}  Rc1+ {[%clk 0:00:09]} 67. Be1+ {[%clk 0:00:32]}  Rxe1+ {[%clk 0:00:10]} 68. Kxe1 {[%clk 0:00:29]}  Kg2 {[%clk 0:00:11]} 0-1

[Event "December 5 Late 2023"]
[Site "https://www.chess.com"]
[Date "2023.12.05"]
[Round "3"]
[White "Feliz Dotel, Dewar Bienvenido"]
[Black "Mazzilli, Piero"]
[Result "0-1"]
[Board "180"]
[TimeControl "180+1"]
[WhiteFideId "6402801"]
[BlackFideId "807087"]
[WhiteElo "2074"]
[BlackElo "2324"]
[WhiteTeam "DOM"]
[BlackTeam "ITA"]
[WhiteClock "0:00:00"]
[BlackClock "0:00:04"]

1. d4 {[%clk 0:02:58]}  d5 {[%clk 0:02:59]} 2. e3 {[%clk 0:02:58]}  c6 {[%clk 0:02:58]} 3. c4 {[%clk 0:02:56]}  e6 {[%clk 0:02:50]} 4. Nf3 {[%clk 0:02:54]}  Bd6 {[%clk 0:02:50]} 5. Bd3 {[%clk 0:02:53]}  Nd7 {[%clk 0:02:48]} 6. O-O {[%clk 0:02:52]}  f5 {[%clk 0:02:48]} 7. b3 {[%clk 0:02:51]}  Qe7 {[%clk 0:02:46]} 8. a4 {[%clk 0:02:50]}  Ngf6 {[%clk 0:02:46]} 9. Ba3 {[%clk 0:02:50]}  Bxa3 {[%clk 0:02:45]} 10. Nxa3 {[%clk 0:02:50]}  O-O {[%clk 0:02:46]} 11. Nb1 {[%clk 0:02:45]}  Ne4 {[%clk 0:02:46]} 12. Nfd2 {[%clk 0:02:36]}  Ndf6 {[%clk 0:02:33]} 13. Bxe4 {[%clk 0:02:26]}  fxe4 {[%clk 0:02:30]} 14. f3 {[%clk 0:02:26]}  e5 {[%clk 0:02:16]} 15. cxd5 {[%clk 0:02:13]}  exd4 {[%clk 0:02:06]} 16. fxe4 {[%clk 0:02:13]}  dxe3 {[%clk 0:02:02]} 17. Nc4 {[%clk 0:02:00]}  Qxe4 {[%clk 0:01:57]} 18. Nc3 {[%clk 0:01:45]}  Qe8 {[%clk 0:01:12]} 19. dxc6 {[%clk 0:01:28]}  Bg4 {[%clk 0:01:04]} 20. Qd4 {[%clk 0:01:08]}  Rd8 {[%clk 0:00:55]} 21. Qxe3 {[%clk 0:00:58]}  Qxc6 {[%clk 0:00:54]} 22. Ne5 {[%clk 0:00:53]}  Qb6 {[%clk 0:00:35]} 23. Qxb6 {[%clk 0:00:41]}  axb6 {[%clk 0:00:36]} 24. Rxf6 {[%clk 0:00:39]}  Rxf6 {[%clk 0:00:30]} 25. Nxg4 {[%clk 0:00:38]}  Rc6 {[%clk 0:00:30]} 26. Nb5 {[%clk 0:00:23]}  Rc2 {[%clk 0:00:26]} 27. Rf1 {[%clk 0:00:16]}  h5 {[%clk 0:00:25]} 28. Ne3 {[%clk 0:00:15]}  Re2 {[%clk 0:00:25]} 29. Nc4 {[%clk 0:00:13]}  Rd3 {[%clk 0:00:21]} 30. h3 {[%clk 0:00:11]}  Ra2 {[%clk 0:00:18]} 31. Rf3 {[%clk 0:00:09]}  Rd1+ {[%clk 0:00:17]} 32. Kh2 {[%clk 0:00:09]}  Rb1 {[%clk 0:00:17]} 33. Rg3 {[%clk 0:00:09]}  Rbb2 {[%clk 0:00:17]} 34. Ne5 {[%clk 0:00:07]}  Kh7 {[%clk 0:00:17]} 35. Nd7 {[%clk 0:00:06]}  h4 {[%clk 0:00:14]} 36. Rg4 {[%clk 0:00:06]}  g5 {[%clk 0:00:14]} 37. Nxb6 {[%clk 0:00:06]}  Ra1 {[%clk 0:00:11]} 38. Rxg5 {[%clk 0:00:05]}  Kh6 {[%clk 0:00:10]} 39. Rg4 {[%clk 0:00:05]}  Kh5 {[%clk 0:00:10]} 40. Nd4 {[%clk 0:00:01]}  Rbb1 {[%clk 0:00:11]} 41. Rxh4+ {[%clk 0:00:01]}  Kxh4 {[%clk 0:00:10]} 42. Nf3+ {[%clk 0:00:02]}  Kh5 {[%clk 0:00:10]} 43. Nd5 {[%clk 0:00:02]}  Rxb3 {[%clk 0:00:07]} 44. Nf6+ {[%clk 0:00:02]}  Kg6 {[%clk 0:00:06]} 45. Ne4 {[%clk 0:00:00]}  Ra2 {[%clk 0:00:04]} 0-1

[Event "December 5 Late 2023"]
[Site "https://www.chess.com"]
[Date "2023.12.05"]
[Round "3"]
[White "Smirnov, Timofey"]
[Black "Rose, Felix"]
[Result "0-1"]
[Board "182"]
[TimeControl "180+1"]
[WhiteFideId "24176427"]
[BlackFideId "5105722"]
[WhiteElo "2053"]
[BlackElo "2313"]
[WhiteTeam "RUS"]
[BlackTeam "MEX"]
[WhiteClock "0:00:00"]
[BlackClock "0:01:01"]

1. d4 {[%clk 0:03:00]}  Nf6 {[%clk 0:02:59]} 2. Bf4 {[%clk 0:03:01]}  d5 {[%clk 0:02:59]} 3. e3 {[%clk 0:03:01]}  e6 {[%clk 0:02:59]} 4. Nd2 {[%clk 0:02:59]}  Bd6 {[%clk 0:03:00]} 5. Bg3 {[%clk 0:02:58]}  O-O {[%clk 0:03:00]} 6. Ngf3 {[%clk 0:02:58]}  c5 {[%clk 0:03:01]} 7. c3 {[%clk 0:02:57]}  b6 {[%clk 0:03:00]} 8. Ne5 {[%clk 0:02:53]}  Bb7 {[%clk 0:02:58]} 9. Ndf3 {[%clk 0:02:53]}  Nc6 {[%clk 0:02:58]} 10. Bd3 {[%clk 0:02:49]}  Qc7 {[%clk 0:02:53]} 11. O-O {[%clk 0:02:41]}  Ne7 {[%clk 0:02:48]} 12. Re1 {[%clk 0:02:34]}  Ne4 {[%clk 0:02:47]} 13. Bxe4 {[%clk 0:02:28]}  dxe4 {[%clk 0:02:48]} 14. Nd2 {[%clk 0:02:17]}  Nf5 {[%clk 0:02:47]} 15. Qc2 {[%clk 0:01:25]}  cxd4 {[%clk 0:02:27]} 16. exd4 {[%clk 0:01:24]}  e3 {[%clk 0:02:24]} 17. fxe3 {[%clk 0:01:14]}  Nxg3 {[%clk 0:02:21]} 18. hxg3 {[%clk 0:01:15]}  f6 {[%clk 0:02:14]} 19. Nef3 {[%clk 0:00:58]}  Bxg3 {[%clk 0:02:13]} 20. Nf1 {[%clk 0:00:31]}  Bxe1 {[%clk 0:02:11]} 21. Rxe1 {[%clk 0:00:29]}  e5 {[%clk 0:01:59]} 22. Kf2 {[%clk 0:00:27]}  Rad8 {[%clk 0:01:50]} 23. Ng3 {[%clk 0:00:15]}  Rfe8 {[%clk 0:01:40]} 24. Rh1 {[%clk 0:00:14]}  g6 {[%clk 0:01:25]} 25. Nh5 {[%clk 0:00:11]}  gxh5 {[%clk 0:01:16]} 26. Rxh5 {[%clk 0:00:11]}  Bxf3 {[%clk 0:01:12]} 27. gxf3 {[%clk 0:00:09]}  exd4 {[%clk 0:01:09]} 28. exd4 {[%clk 0:00:08]}  Re7 {[%clk 0:01:05]} 29. Qf5 {[%clk 0:00:00]}  Rde8 {[%clk 0:01:01]} 0-1

[Event "December 5 Late 2023"]
[Site "https://www.chess.com"]
[Date "2023.12.05"]
[Round "3"]
[White "Panuganti, Kireet"]
[Black "Antonio, Jorge Carlos"]
[Result "0-1"]
[Board "184"]
[TimeControl "180+1"]
[WhiteFideId "30903297"]
[BlackFideId "113190"]
[WhiteElo "2017"]
[BlackElo "2311"]
[WhiteTeam "USA"]
[BlackTeam "ARG"]
[WhiteClock "0:00:00"]
[BlackClock "0:01:31"]

1. e4 {[%clk 0:03:00]}  c5 {[%clk 0:02:59]} 2. Nf3 {[%clk 0:03:00]}  e6 {[%clk 0:02:59]} 3. d4 {[%clk 0:03:00]}  cxd4 {[%clk 0:02:58]} 4. Nxd4 {[%clk 0:03:01]}  a6 {[%clk 0:02:59]} 5. Nc3 {[%clk 0:03:00]}  Nf6 {[%clk 0:02:58]} 6. g3 {[%clk 0:02:59]}  Nc6 {[%clk 0:02:57]} 7. Nb3 {[%clk 0:02:58]}  Bb4 {[%clk 0:02:57]} 8. Bg2 {[%clk 0:02:57]}  d5 {[%clk 0:02:55]} 9. O-O {[%clk 0:02:37]}  Bxc3 {[%clk 0:02:53]} 10. bxc3 {[%clk 0:02:35]}  dxe4 {[%clk 0:02:53]} 11. Ba3 {[%clk 0:02:18]}  Qxd1 {[%clk 0:02:37]} 12. Raxd1 {[%clk 0:02:13]}  Bd7 {[%clk 0:02:25]} 13. Nc5 {[%clk 0:01:38]}  O-O-O {[%clk 0:02:19]} 14. Rb1 {[%clk 0:01:24]}  Na5 {[%clk 0:02:09]} 15. Nxe4 {[%clk 0:01:19]}  Bc6 {[%clk 0:02:02]} 16. Nxf6 {[%clk 0:01:15]}  gxf6 {[%clk 0:02:01]} 17. Bxc6 {[%clk 0:01:12]}  Nxc6 {[%clk 0:02:00]} 18. Rfd1 {[%clk 0:00:55]}  Rxd1+ {[%clk 0:01:56]} 19. Rxd1 {[%clk 0:00:55]}  Rd8 {[%clk 0:01:54]} 20. Rxd8+ {[%clk 0:00:53]}  Kxd8 {[%clk 0:01:53]} 21. Kf1 {[%clk 0:00:45]}  Kd7 {[%clk 0:01:53]} 22. Ke2 {[%clk 0:00:45]}  Na5 {[%clk 0:01:53]} 23. Kd3 {[%clk 0:00:43]}  b5 {[%clk 0:01:53]} 24. Bb4 {[%clk 0:00:37]}  Nc4 {[%clk 0:01:52]} 25. Kd4 {[%clk 0:00:30]}  Kc6 {[%clk 0:01:51]} 26. Be7 {[%clk 0:00:27]}  f5 {[%clk 0:01:50]} 27. f3 {[%clk 0:00:19]}  e5+ {[%clk 0:01:47]} 28. Kd3 {[%clk 0:00:18]}  Kd5 {[%clk 0:01:46]} 29. Bf6 {[%clk 0:00:12]}  Nb2+ {[%clk 0:01:42]} 30. Kd2 {[%clk 0:00:12]}  Nc4+ {[%clk 0:01:40]} 31. Kd3 {[%clk 0:00:12]}  e4+ {[%clk 0:01:34]} 32. fxe4+ {[%clk 0:00:11]}  fxe4+ {[%clk 0:01:34]} 33. Ke2 {[%clk 0:00:10]}  Ke6 {[%clk 0:01:33]} 34. Bd4 {[%clk 0:00:09]}  f5 {[%clk 0:01:32]} 35. Bh8 {[%clk 0:00:03]}  h5 {[%clk 0:01:32]} 36. Bd4 {[%clk 0:00:02]}  Kd5 {[%clk 0:01:32]} 37. Bf6 {[%clk 0:00:00]}  Na3 {[%clk 0:01:31]} 0-1

[Event "December 5 Late 2023"]
[Site "https://www.chess.com"]
[Date "2023.12.05"]
[Round "3"]
[White "Winkels, Marcel"]
[Black "Rian, Kapriaga"]
[Result "0-1"]
[Board "186"]
[TimeControl "180+1"]
[WhiteFideId "1003887"]
[BlackFideId "7103263"]
[WhiteElo "2001"]
[BlackElo "2305"]
[WhiteTeam "NED"]
[BlackTeam "INA"]
[WhiteClock "0:00:00"]
[BlackClock "0:00:29"]

1. e4 {[%clk 0:03:00]}  c6 {[%clk 0:02:58]} 2. d4 {[%clk 0:02:59]}  d5 {[%clk 0:02:58]} 3. exd5 {[%clk 0:03:00]}  cxd5 {[%clk 0:02:57]} 4. Bd3 {[%clk 0:03:00]}  Nc6 {[%clk 0:02:56]} 5. c3 {[%clk 0:03:00]}  Qc7 {[%clk 0:02:55]} 6. Ne2 {[%clk 0:02:58]}  Bg4 {[%clk 0:02:52]} 7. Qb3 {[%clk 0:02:55]}  Bxe2 {[%clk 0:02:44]} 8. Bxe2 {[%clk 0:02:54]}  Nxd4 {[%clk 0:02:41]} 9. Qa4+ {[%clk 0:02:47]}  Nc6 {[%clk 0:02:40]} 10. O-O {[%clk 0:02:45]}  e6 {[%clk 0:02:38]} 11. Nd2 {[%clk 0:02:44]}  Bd6 {[%clk 0:02:35]} 12. Nf3 {[%clk 0:02:44]}  Ne7 {[%clk 0:02:31]} 13. Qh4 {[%clk 0:02:40]}  h6 {[%clk 0:02:29]} 14. Re1 {[%clk 0:02:36]}  Nf5 {[%clk 0:02:24]} 15. Qh3 {[%clk 0:02:34]}  O-O-O {[%clk 0:02:18]} 16. Bd3 {[%clk 0:02:32]}  Nfe7 {[%clk 0:02:07]} 17. b4 {[%clk 0:02:29]}  Kb8 {[%clk 0:01:59]} 18. a4 {[%clk 0:02:27]}  Rc8 {[%clk 0:01:53]} 19. Bb2 {[%clk 0:02:18]}  g5 {[%clk 0:01:41]} 20. Nd4 {[%clk 0:02:06]}  Nxd4 {[%clk 0:01:38]} 21. cxd4 {[%clk 0:02:04]}  Nc6 {[%clk 0:01:24]} 22. b5 {[%clk 0:01:57]}  Na5 {[%clk 0:01:23]} 23. Rec1 {[%clk 0:01:56]}  Qd7 {[%clk 0:01:22]} 24. Qf3 {[%clk 0:01:51]}  h5 {[%clk 0:01:14]} 25. Qe2 {[%clk 0:01:50]}  g4 {[%clk 0:01:09]} 26. Qd2 {[%clk 0:01:50]}  Nb3 {[%clk 0:01:08]} 27. Qd1 {[%clk 0:01:39]}  Nxa1 {[%clk 0:01:03]} 28. Rxa1 {[%clk 0:01:39]}  f5 {[%clk 0:00:59]} 29. Qb3 {[%clk 0:01:37]}  g3 {[%clk 0:00:48]} 30. fxg3 {[%clk 0:01:31]}  h4 {[%clk 0:00:48]} 31. h3 {[%clk 0:01:31]}  Rcg8 {[%clk 0:00:42]} 32. b6 {[%clk 0:01:21]}  a6 {[%clk 0:00:39]} 33. Qd1 {[%clk 0:01:20]}  Rxg3 {[%clk 0:00:35]} 34. Bf1 {[%clk 0:01:17]}  Rhg8 {[%clk 0:00:34]} 35. Kh1 {[%clk 0:00:00]}  Qg7 {[%clk 0:00:29]} 0-1